bitfinex/quotes_BTCUSD_20211001
["timestamp","ask_amount","ask_price","bid_price","bid_amount"]
[1633072737865,0.08920338,44340.0,44333.0,0.30583544]
[1633072738064,0.30518623,44339.0,44333.0,0.21352722]
[1633072738265,0.564204,44337.0,44334.0,0.04565951]
[1633072738466,0.52656253,44336.0,44333.0,0.03567226]
[1633072738867,0.51056253,44336.0,44333.0,0.03694161]
[1633072739067,0.00817953,44340.0,44333.0,0.03694161]
[1633072739465,0.31605986,44340.0,44333.0,0.03694161]
[1633072739668,0.54176786,44340.0,44333.0,0.028]
[1633072739868,0.207396,44336.0,44330.0,0.796]
[1633072740068,0.207396,44336.0,44322.0,0.00126052]
[1633072740069,0.37962695,44335.0,44318.0,0.14254886]
[1633072740268,0.37962695,44335.0,44318.0,0.00713429]
[1633072740269,0.02253737,44327.0,44318.0,0.00713429]
[1633072740470,0.338661,44323.0,44318.0,0.00713429]
[1633072740667,0.76115859,44322.0,44315.0,0.24325]
[1633072740868,0.01947748,44320.0,44317.0,0.05593172]
[1633072741067,0.207396,44319.0,44317.0,0.05573172]
[1633072741267,0.50053049,44318.0,44317.0,0.05573172]
[1633072741669,0.207396,44318.0,44317.0,0.32902116]
[1633072741868,0.451548,44324.0,44317.0,0.05553172]
[1633072742068,0.207396,44323.0,44317.0,0.05553172]
[1633072742268,0.2141988,44323.0,44317.0,0.00930188]
[1633072742467,0.2141988,44323.0,44317.0,0.03850402]
[1633072742669,0.08672612,44322.0,44317.0,0.03830402]
[1633072742872,0.207396,44321.0,44317.0,0.03130188]
[1633072743270,0.546013,44321.0,44317.0,0.03130188]
[1633072743470,0.546013,44321.0,44317.0,0.03110188]
[1633072743669,0.564113,44321.0,44317.0,0.03110188]
[1633072743871,0.207396,44320.0,44317.0,0.00910188]
[1633072744273,0.207396,44320.0,44318.0,0.04771175]
[1633072744471,0.240396,44320.0,44317.0,0.03010188]
[1633072744672,0.240396,44320.0,44317.0,0.02990188]
[1633072744871,0.240396,44320.0,44318.0,0.04453824]
[1633072745272,0.451551,44319.0,44318.0,0.04453824]
[1633072745471,0.451551,44319.0,44318.0,0.04433824]
[1633072745472,0.658947,44319.0,44318.0,0.04433824]
[1633072745671,0.658947,44319.0,44318.0,0.04525707]
[1633072746073,0.658947,44319.0,44318.0,1.04525707]
[1633072746273,0.451551,44319.0,44318.0,1.04525707]
[1633072746473,0.032,44319.0,44318.0,1.06725707]
[1633072746676,0.032,44319.0,44318.0,1.06705707]
[1633072747275,0.032,44319.0,44318.0,1.24874408]
[1633072747484,0.32506828,44330.0,44319.0,1.1498]
[1633072747678,0.32506828,44330.0,44326.0,0.00120642]
[1633072747879,0.32506828,44330.0,44329.0,1.2622822]
[1633072748075,0.32506828,44330.0,44329.0,1.30725493]
[1633072748274,0.32506828,44330.0,44329.0,1.24497273]
[1633072748477,0.32506828,44330.0,44329.0,1.28097273]
[1633072748478,0.34106828,44330.0,44329.0,1.28097273]
[1633072748677,0.34106828,44330.0,44329.0,1.236]
[1633072749277,0.34106828,44330.0,44329.0,1.32448669]
[1633072749876,0.32506828,44330.0,44329.0,1.51223685]
[1633072750077,0.32506828,44330.0,44329.0,1.51203685]
[1633072750478,0.34106828,44330.0,44329.0,1.54303685]
[1633072750882,0.34106828,44330.0,44329.0,1.54283685]
[1633072751077,0.34106828,44330.0,44329.0,1.62875047]
[1633072751276,0.34106828,44330.0,44329.0,0.0804]
[1633072751478,0.34106828,44330.0,44329.0,0.031]
[1633072751678,0.34106828,44330.0,44329.0,0.0308]
[1633072751881,0.44587994,44330.0,44329.0,0.0308]
[1633072752078,0.44587994,44330.0,44328.0,0.13660165]
[1633072752079,0.42987994,44330.0,44328.0,0.13660165]
[1633072752279,0.51418546,44330.0,44328.0,0.05]
[1633072752477,0.53918546,44330.0,44329.0,0.025]
[1633072752882,0.53918546,44330.0,44319.0,1.0998]
[1633072752883,0.74658146,44330.0,44319.0,1.0998]
[1633072753087,0.6680175,44330.0,44319.0,1.0998]
[1633072753281,0.6680175,44330.0,44319.0,1.0996]
[1633072753581,0.01719108,44326.0,44319.0,0.0996]
[1633072753781,0.338645,44323.0,44318.0,1.00713045]
[1633072753982,0.31311889,44321.0,44318.0,1.0]
[1633072754185,0.0180749,44320.0,44318.0,0.9998]
[1633072754382,0.40517861,44320.0,44318.0,0.93777016]
[1633072754583,0.40517861,44320.0,44318.0,0.95477016]
[1633072754584,0.11853969,44319.0,44318.0,0.95477016]
[1633072754788,0.09728512,44319.0,44318.0,1.00988809]
[1633072754983,0.12211715,44321.0,44318.0,1.00988809]
[1633072755183,0.028,44321.0,44320.0,0.00120579]
[1633072755380,0.028,44321.0,44320.0,0.01819735]
[1633072755381,0.12518593,44321.0,44320.0,0.01819735]
[1633072755582,0.12437579,44321.0,44319.0,0.00094]
[1633072755784,0.46298979,44321.0,44319.0,0.00094]
[1633072755987,0.00771703,44320.0,44318.0,0.92777016]
[1633072756382,0.30430496,44320.0,44318.0,0.92777016]
[1633072756584,0.12984429,44319.0,44318.0,0.49813716]
[1633072756782,0.12984429,44319.0,44318.0,0.17306888]
[1633072756783,0.65753847,44319.0,44318.0,0.17306888]
[1633072756989,0.65753847,44319.0,44311.0,0.19069812]
[1633072756990,0.93046488,44318.0,44311.0,0.19069812]
[1633072757187,0.02846625,44312.0,44311.0,0.19069812]
[1633072757382,0.54656625,44312.0,44300.0,0.00737761]
[1633072757584,0.08863333,44303.0,44300.0,0.00070455]
[1633072757785,0.08863333,44303.0,44300.0,0.00050455]
[1633072757786,0.21104338,44301.0,44300.0,0.00050455]
[1633072757984,0.3258639,44301.0,44300.0,0.00050455]
[1633072758188,0.6534549,44301.0,44300.0,0.00050455]
[1633072758384,0.86473722,44301.0,44290.0,0.00075742]
[1633072758585,0.14965017,44291.0,44290.0,0.00075742]
[1633072758784,0.71760947,44291.0,44290.0,0.00075742]
[1633072758985,0.43451192,44291.0,44290.0,0.00055742]
[1633072759185,0.207396,44290.0,44280.0,0.00036772]
[1633072759381,0.33818221,44289.0,44280.0,0.00036772]
[1633072759584,0.00177316,44286.0,44280.0,0.00036772]
[1633072759780,0.225496,44285.0,44280.0,0.00036772]
[1633072759987,0.31952154,44285.0,44281.0,0.04416686]
[1633072760183,0.11212554,44285.0,44281.0,0.04416686]
[1633072760382,0.0181,44285.0,44280.0,0.00036772]
[1633072760583,0.207396,44284.0,44280.0,0.00036772]
[1633072760783,0.0181,44283.0,44280.0,0.00036772]
[1633072760982,0.207396,44282.0,44280.0,0.00016772]
[1633072761184,0.0181,44281.0,44280.0,0.00016772]
[1633072761383,0.22722413,44281.0,44280.0,0.02216772]
[1633072761781,0.22722413,44281.0,44280.0,0.02196772]
[1633072761981,0.22722413,44281.0,44280.0,0.20435134]
[1633072762185,0.56613513,44281.0,44280.0,0.22512431]
[1633072762383,0.40741209,44281.0,44280.0,0.04274069]
[1633072762584,0.40741209,44281.0,44279.0,0.0002]
[1633072762781,0.43741209,44281.0,44280.0,0.018]
[1633072762986,0.43741209,44281.0,44280.0,0.0178]
[1633072763182,0.09850109,44281.0,44280.0,0.06439799]
[1633072763381,0.09850109,44281.0,44280.0,0.0178]
[1633072763785,0.09850109,44281.0,44280.0,0.0176]
[1633072764584,0.06850109,44281.0,44279.0,0.0002]
[1633072764789,0.09850109,44281.0,44280.0,0.021]
[1633072764988,0.09850109,44281.0,44280.0,0.4208]
[1633072765185,0.03,44281.0,44280.0,0.50126609]
[1633072765385,0.03,44281.0,44280.0,0.4708]
[1633072765585,0.03,44281.0,44280.0,0.4558]
[1633072765988,0.03,44281.0,44280.0,0.4556]
[1633072766185,0.03,44281.0,44280.0,0.4561301]
[1633072766383,0.338914,44283.0,44280.0,0.4348]
[1633072766583,0.43735042,44283.0,44281.0,0.07005633]
[1633072766785,0.43735042,44283.0,44282.0,0.63095536]
[1633072766986,0.43735042,44283.0,44282.0,0.07786213]
[1633072767192,0.50581742,44283.0,44280.0,0.015]
[1633072767390,0.11,44289.0,44283.0,0.09843642]
[1633072767589,0.11,44289.0,44288.0,0.40122924]
[1633072767850,0.00011937,44302.0,44298.0,0.04784302]
[1633072768051,0.00011937,44302.0,44301.0,0.03359126]
[1633072768247,0.00011937,44302.0,44301.0,0.2446616]
[1633072768447,0.00011937,44302.0,44301.0,0.18260589]
[1633072768647,0.02311937,44302.0,44301.0,0.20960589]
[1633072768848,0.02311937,44302.0,44301.0,0.50833495]
[1633072769046,0.02311937,44302.0,44301.0,0.50956779]
[1633072769246,0.02311937,44302.0,44301.0,0.60932638]
[1633072769448,0.02311937,44302.0,44301.0,0.60912638]
[1633072769647,0.001,44310.0,44307.0,0.62519832]
[1633072769856,0.001,44310.0,44309.0,1.05128913]
[1633072770048,0.001,44310.0,44309.0,1.43167989]
[1633072770246,0.001,44310.0,44309.0,1.48548199]
[1633072770448,0.001,44310.0,44309.0,1.45618263]
[1633072770647,0.001,44310.0,44309.0,1.48918263]
[1633072770847,0.001,44310.0,44309.0,1.48898263]
[1633072771648,0.001,44310.0,44309.0,1.41443263]
[1633072772248,0.001,44310.0,44309.0,1.38143263]
[1633072772447,0.001,44310.0,44309.0,1.38123263]
[1633072772650,0.001,44310.0,44309.0,1.41123263]
[1633072773251,0.225762,44315.0,44309.0,0.12555602]
[1633072773252,0.338648,44313.0,44309.0,0.12555602]
[1633072773455,0.338648,44313.0,44308.0,0.13543967]
[1633072773456,0.0188041,44311.0,44308.0,0.13543967]
[1633072773650,0.0188041,44311.0,44307.0,0.00078147]
[1633072774051,0.0188041,44311.0,44307.0,0.00053612]
[1633072774248,0.0188041,44311.0,44307.0,0.00033612]
[1633072774451,0.338666,44310.0,44308.0,0.21564907]
[1633072774652,0.0418041,44311.0,44308.0,0.21564907]
[1633072774852,0.0418041,44311.0,44307.0,0.03233612]
[1633072775058,0.0418041,44311.0,44302.0,0.15196163]
[1633072775059,0.05625341,44302.0,44290.0,0.00693178]
[1633072775263,0.05625341,44302.0,44284.0,0.34]
[1633072775264,0.225897,44295.0,44284.0,0.34]
[1633072775453,0.338845,44291.0,44286.0,0.0056013]
[1633072775657,0.31386048,44294.0,44288.0,0.00127943]
[1633072775852,0.00126208,44299.0,44291.0,0.08926208]
[1633072776054,0.0007823,44299.0,44292.0,0.01958904]
[1633072776254,0.0005301,44305.0,44293.0,1.09131584]
[1633072776464,0.17306888,44318.0,44306.0,0.07194797]
[1633072776657,0.17306888,44318.0,44314.0,0.00129307]
[1633072776857,0.17306888,44318.0,44315.0,0.43940939]
[1633072777054,0.17306888,44318.0,44316.0,0.4025256]
[1633072777259,0.15,44326.0,44317.0,1.73439166]
[1633072777453,0.15,44326.0,44325.0,0.00129701]
[1633072777654,0.15,44326.0,44325.0,0.45440261]
[1633072777853,0.15,44326.0,44325.0,0.19673806]
[1633072778052,0.15,44326.0,44325.0,0.19511095]
[1633072778053,0.24003864,44326.0,44325.0,0.19511095]
[1633072778258,0.24003864,44326.0,44325.0,0.14758]
[1633072778652,0.24003864,44326.0,44322.0,0.00125717]
[1633072778852,0.24003864,44326.0,44325.0,0.015]
[1633072778853,0.27003864,44326.0,44325.0,0.015]
[1633072779056,0.18,44326.0,44325.0,0.015]
[1633072779453,0.18,44326.0,44325.0,0.0148]
[1633072780052,0.26,44326.0,44324.0,0.35431093]
[1633072780254,0.26,44326.0,44325.0,0.5931341]
[1633072780456,0.26,44326.0,44325.0,0.8213391]
[1633072780660,0.15,44329.0,44326.0,1.03858517]
[1633072780856,0.15,44329.0,44328.0,0.09625439]
[1633072781055,0.15,44329.0,44328.0,0.39849325]
[1633072781258,0.15,44329.0,44324.0,0.029]
[1633072781456,0.0189221,44327.0,44324.0,0.029]
[1633072781857,0.0189221,44327.0,44324.0,0.0288]
[1633072782056,0.07531315,44325.0,44318.0,0.00781264]
[1633072782255,0.0189221,44327.0,44319.0,0.17809855]
[1633072782457,0.0189221,44327.0,44321.0,0.00129452]
[1633072782657,0.0189221,44327.0,44326.0,0.81327844]
[1633072782857,0.225665,44341.0,44326.0,1.05336692]
[1633072783060,0.09720328,44332.0,44327.0,0.01097028]
[1633072783259,0.243765,44341.0,44328.0,0.04289137]
[1633072783260,0.09356993,44333.0,44328.0,0.04289137]
[1633072783458,0.09814102,44334.0,44330.0,0.225637]
[1633072783660,3.78785898,44355.0,44332.0,0.00685594]
[1633072783661,0.00122116,44343.0,44332.0,0.00685594]
[1633072783860,0.00122116,44343.0,44333.0,0.01579513]
[1633072784056,0.10541695,44348.0,44336.0,0.02863123]
[1633072784259,0.10541695,44348.0,44337.0,0.0005301]
[1633072784458,0.10541695,44348.0,44333.0,0.02311583]
[1633072784459,0.08311068,44337.0,44334.0,0.0005301]
[1633072784657,0.18562194,44341.0,44333.0,0.22388819]
[1633072784856,0.18562194,44341.0,44336.0,0.03]
[1633072785055,0.00125143,44342.0,44336.0,0.03]
[1633072785258,0.00125143,44342.0,44337.0,0.02055219]
[1633072785657,0.09063272,44342.0,44338.0,0.0198609]
[1633072785857,0.338498,44340.0,44338.0,0.0198609]
[1633072786054,0.338498,44340.0,44337.0,0.02035219]
[1633072786055,0.338498,44340.0,44336.0,0.03]
[1633072786258,0.17234376,44339.0,44330.0,0.00503868]
[1633072786659,0.17234376,44339.0,44331.0,0.0005301]
[1633072786856,0.19834376,44339.0,44332.0,0.08969346]
[1633072787264,0.19834376,44339.0,44332.0,0.022]
[1633072787265,0.00122745,44333.0,44332.0,0.022]
[1633072787463,0.00122745,44333.0,44332.0,0.0218]
[1633072787662,0.12690931,44333.0,44332.0,0.0218]
[1633072787862,0.02064623,44333.0,44332.0,0.0218]
[1633072788062,0.40286941,44338.0,44332.0,0.03258241]
[1633072788262,0.09575324,44338.0,44332.0,0.19576388]
[1633072788460,0.0705729,44335.0,44333.0,0.03910512]
[1633072788662,0.0705729,44335.0,44328.0,0.08569804]
[1633072788860,0.0705729,44335.0,44332.0,0.002]
[1633072789461,0.338489,44334.0,44333.0,0.03909738]
[1633072789660,0.338489,44334.0,44332.0,0.002]
[1633072790865,0.373489,44334.0,44327.0,0.1763849]
[1633072791066,0.01499345,44332.0,44324.0,0.00126262]
[1633072791260,0.01499345,44332.0,44325.0,0.0005301]
[1633072791464,0.01499345,44332.0,44329.0,0.17478402]
[1633072791662,0.451437,44336.0,44330.0,0.18912192]
[1633072791864,0.00126336,44341.0,44331.0,0.04387687]
[1633072792062,0.00126336,44341.0,44333.0,0.02986628]
[1633072792261,0.00126336,44341.0,44332.0,0.01954833]
[1633072792462,0.00126336,44341.0,44332.0,0.01901823]
[1633072792661,0.00126336,44341.0,44333.0,0.01877037]
[1633072792662,0.0081,44339.0,44333.0,0.01877037]
[1633072792864,0.09306263,44338.0,44330.0,0.0652912]
[1633072793064,0.09306263,44338.0,44332.0,0.0178]
[1633072793065,0.00126252,44334.0,44332.0,0.0178]
[1633072793263,0.1,44333.0,44332.0,0.0178]
[1633072793465,0.36076506,44333.0,44332.0,0.0178]
[1633072793666,0.21005176,44333.0,44332.0,0.0178]
[1633072793862,0.11636086,44333.0,44332.0,0.0178]
[1633072794064,0.1,44333.0,44332.0,0.06155806]
[1633072794263,0.438542,44333.0,44332.0,0.26168991]
[1633072794465,0.1,44333.0,44332.0,0.33858013]
[1633072794664,0.1,44333.0,44332.0,0.52102697]
[1633072794869,0.1,44333.0,44332.0,0.63604109]
[1633072795067,0.125,44333.0,44332.0,1.19970547]
[1633072795268,0.125,44333.0,44332.0,1.20023557]
[1633072795467,0.125,44333.0,44332.0,0.89098886]
[1633072795666,0.125,44333.0,44332.0,1.06258386]
[1633072796067,0.125,44333.0,44332.0,0.88013702]
[1633072796267,0.125,44333.0,44332.0,0.7649229]
[1633072796466,0.125,44333.0,44332.0,0.77539605]
[1633072796866,0.1,44333.0,44332.0,0.78239605]
[1633072797064,0.1,44333.0,44332.0,0.78219605]
[1633072797264,0.1,44333.0,44332.0,1.1257259]
[1633072797866,0.1,44333.0,44332.0,1.1255259]
[1633072798265,0.1,44333.0,44332.0,1.28021743]
[1633072798466,0.1,44333.0,44332.0,1.39128743]
[1633072798865,0.128,44333.0,44332.0,1.42128743]
[1633072799064,0.128,44333.0,44332.0,1.42108743]
[1633072799265,0.128,44333.0,44332.0,1.42055733]
[1633072799668,0.128,44333.0,44332.0,1.26504676]
[1633072799865,0.128,44333.0,44332.0,1.03664176]
[1633072800065,0.128,44333.0,44332.0,1.26484676]
[1633072800465,0.128,44333.0,44332.0,1.26464676]
[1633072800666,0.128,44333.0,44332.0,0.94185069]
[1633072800870,0.1,44333.0,44332.0,0.91185069]
[1633072801067,0.116,44333.0,44332.0,0.94245069]
[1633072801272,0.116,44333.0,44332.0,0.83118069]
[1633072801667,0.116,44333.0,44332.0,3.0202996]
[1633072801871,0.116,44333.0,44332.0,0.33755248]
[1633072802070,0.21826434,44333.0,44332.0,0.33735248]
[1633072802272,0.20226434,44333.0,44332.0,0.30587663]
[1633072802471,0.19362835,44333.0,44332.0,1.06799673]
[1633072802873,0.19605651,44333.0,44332.0,1.06799673]
[1633072803072,0.2133257,44333.0,44332.0,1.35799459]
[1633072803272,0.116,44333.0,44332.0,1.58639959]
[1633072803472,0.20851657,44333.0,44332.0,1.58639959]
[1633072803877,0.116,44333.0,44332.0,1.31087044]
[1633072804077,0.21485888,44333.0,44332.0,1.31087044]
[1633072804273,0.21485888,44333.0,44332.0,1.10844741]
[1633072804473,0.1,44333.0,44332.0,1.33665241]
[1633072804674,0.20460799,44333.0,44332.0,0.41994248]
[1633072805074,0.125,44333.0,44332.0,0.28735248]
[1633072805275,0.125,44333.0,44332.0,0.48289464]
[1633072805276,0.21916149,44333.0,44332.0,0.48289464]
[1633072805476,0.125,44333.0,44332.0,0.88269464]
[1633072805676,0.125,44333.0,44332.0,0.96027379]
[1633072805876,0.125,44333.0,44332.0,1.04439034]
[1633072806077,0.125,44333.0,44332.0,0.55171466]
[1633072806277,0.125,44333.0,44332.0,0.03021267]
[1633072806278,0.1431,44333.0,44332.0,0.03021267]
[1633072806481,0.1431,44333.0,44332.0,0.029]
[1633072806482,0.36400727,44333.0,44332.0,0.029]
[1633072806682,0.36147263,44333.0,44332.0,0.02906]
[1633072806878,0.80364494,44333.0,44332.0,0.02906]
[1633072807083,0.3,44332.0,44310.0,0.00760038]
[1633072807298,0.3,44332.0,44295.0,0.1476]
[1633072807299,0.5,44317.0,44295.0,0.1476]
[1633072807485,0.02977121,44300.0,44299.0,0.07805203]
[1633072807784,0.02977121,44300.0,44285.0,0.005]
[1633072807785,0.44637392,44300.0,44285.0,0.005]
[1633072807983,0.00120797,44288.0,44285.0,0.005]
[1633072808180,0.02195345,44287.0,44285.0,0.005]
[1633072808383,0.00124343,44286.0,44285.0,0.005]
[1633072808581,0.02570151,44286.0,44285.0,0.005]
[1633072808779,0.35061129,44286.0,44279.0,0.0002]
[1633072808983,0.00799763,44283.0,44279.0,0.0002]
[1633072809184,0.00120168,44281.0,44279.0,0.0002]
[1633072809381,0.02526681,44280.0,44279.0,0.0002]
[1633072809583,0.0181,44283.0,44280.0,0.25]
[1633072809781,0.035,44286.0,44280.0,0.25]
[1633072809982,0.035,44286.0,44282.0,0.00120165]
[1633072810182,0.035,44286.0,44284.0,0.2232]
[1633072810381,0.035,44286.0,44285.0,1.41144314]
[1633072810780,0.0002,44290.0,44285.0,0.60964503]
[1633072810980,0.0002,44290.0,44286.0,0.0058659]
[1633072811381,0.0002,44290.0,44288.0,0.2232]
[1633072811587,0.0002,44291.0,44289.0,0.25871879]
[1633072811789,0.0002,44293.0,44290.0,0.34649464]
[1633072811983,0.0002,44294.0,44290.0,0.34649464]
[1633072811984,0.0096823,44307.0,44305.0,0.08829113]
[1633072812183,0.34284533,44310.0,44306.0,0.02248352]
[1633072812383,0.34284533,44310.0,44306.0,0.28327129]
[1633072812582,0.34284533,44310.0,44307.0,0.03816785]
[1633072812781,0.09324533,44310.0,44307.0,0.03816785]
[1633072812981,0.09353521,44310.0,44308.0,0.0005301]
[1633072813183,0.11170728,44310.0,44307.0,0.05265553]
[1633072813380,0.11388303,44310.0,44308.0,0.0387867]
[1633072813581,0.11388303,44310.0,44306.0,0.029]
[1633072813582,0.015,44310.0,44306.0,0.029]
[1633072814183,0.015,44310.0,44306.0,0.0288]
[1633072814383,0.01512,44310.0,44307.0,0.2695919]
[1633072814582,0.01512,44310.0,44307.0,0.02237807]
[1633072814784,0.01512,44310.0,44306.0,0.19117907]
[1633072814983,0.00012,44310.0,44308.0,0.03158684]
[1633072815183,0.03412,44310.0,44308.0,0.03158684]
[1633072815385,0.03412,44310.0,44309.0,0.95053643]
[1633072815587,0.03412,44310.0,44309.0,0.86977517]
[1633072815985,0.03412,44310.0,44309.0,0.86856481]
[1633072816182,0.03412,44310.0,44309.0,0.86836481]
[1633072816385,0.03412,44310.0,44309.0,1.16836481]
[1633072816583,0.03412,44310.0,44309.0,1.09676981]
[1633072816785,0.03412,44310.0,44309.0,0.68348688]
[1633072816985,0.00012,44310.0,44309.0,0.68348688]
[1633072817186,0.02812,44310.0,44309.0,0.70148688]
[1633072817585,0.07422058,44317.0,44315.0,0.13560046]
[1633072817786,0.07422058,44317.0,44316.0,0.04387958]
[1633072818587,0.07422058,44317.0,44315.0,0.13560046]
[1633072818986,0.07422058,44317.0,44315.0,0.13540046]
[1633072819188,0.2232,44316.0,44305.0,0.00123323]
[1633072819392,0.08742916,44312.0,44306.0,0.03866662]
[1633072819787,0.0181,44313.0,44306.0,0.03866662]
[1633072819985,0.0181,44313.0,44307.0,0.0005301]
[1633072820187,0.338699,44310.0,44309.0,0.02686857]
[1633072820388,0.338699,44310.0,44301.0,0.40094784]
[1633072820587,0.338699,44310.0,44302.0,0.04019316]
[1633072820787,0.338699,44310.0,44303.0,0.08893454]
[1633072820987,0.338699,44310.0,44304.0,0.08767306]
[1633072821186,0.358699,44310.0,44305.0,0.35896809]
[1633072821385,0.358699,44310.0,44306.0,0.05193287]
[1633072821586,0.358699,44310.0,44307.0,0.0005301]
[1633072821844,0.35819271,44310.0,44308.0,0.04286761]
[1633072822049,0.35819271,44310.0,44309.0,0.03811405]
[1633072822248,0.02,44310.0,44309.0,0.58864415]
[1633072823249,0.036,44310.0,44309.0,0.04364415]
[1633072823456,0.036,44310.0,44309.0,0.0048]
[1633072823457,0.61151586,44310.0,44309.0,0.0048]
[1633072824046,0.7050365,44310.0,44309.0,0.0048]
[1633072824248,0.71676517,44310.0,44309.0,0.0046]
[1633072824450,0.71676517,44310.0,44293.0,0.1998]
[1633072824451,0.45,44309.0,44293.0,0.1998]
[1633072824666,0.00122965,44294.0,44293.0,0.1998]
[1633072824857,0.04415206,44294.0,44293.0,0.1998]
[1633072825050,0.36281721,44294.0,44293.0,0.1998]
[1633072825249,0.36281721,44294.0,44293.0,0.2188]
[1633072825250,0.07515206,44294.0,44293.0,0.2188]
[1633072825849,0.29835206,44294.0,44293.0,0.2188]
[1633072826051,0.07515206,44294.0,44293.0,0.2188]
[1633072826648,0.04415206,44294.0,44293.0,0.1998]
[1633072827051,0.26735206,44294.0,44293.0,0.1998]
[1633072827252,0.26952965,44294.0,44293.0,0.24368794]
[1633072827449,0.26952965,44294.0,44293.0,0.2038]
[1633072827651,0.26952965,44294.0,44293.0,0.1638]
[1633072828058,0.0451,44294.0,44293.0,0.1638]
[1633072828451,0.0451,44294.0,44293.0,0.2138]
[1633072828650,0.0181,44294.0,44293.0,0.2098]
[1633072828855,0.0181,44294.0,44293.0,0.1598]
[1633072829252,0.0491,44294.0,44293.0,0.2258]
[1633072830254,0.031,44294.0,44293.0,0.57700638]
[1633072830454,0.031,44294.0,44293.0,0.57753648]
[1633072830653,0.0181,44305.0,44293.0,0.56153648]
[1633072830853,0.0181,44305.0,44297.0,0.19432931]
[1633072831054,0.001218,44304.0,44294.0,0.05731028]
[1633072831255,0.09849435,44303.0,44296.0,0.00517162]
[1633072831656,0.001207,44297.0,44296.0,0.00517162]
[1633072831855,0.001207,44297.0,44293.0,0.023]
[1633072831856,0.02682554,44297.0,44293.0,0.023]
[1633072832459,0.02682554,44297.0,44294.0,0.01265455]
[1633072832655,0.01165239,44295.0,44293.0,0.023]
[1633072832857,0.47118082,44294.0,44293.0,0.023]
[1633072833256,0.48736374,44294.0,44282.0,0.27616686]
[1633072833458,0.48736374,44294.0,44284.0,0.18810115]
[1633072834262,0.48736374,44294.0,44282.0,0.23870781]
[1633072834458,0.00709155,44283.0,44282.0,0.01120442]
[1633072834668,0.225874,44286.0,44279.0,0.0002]
[1633072834669,0.275874,44286.0,44279.0,0.0002]
[1633072834864,0.275874,44286.0,44272.0,0.0004]
[1633072834865,0.00121208,44277.0,44276.0,0.00100022]
[1633072835061,0.00121208,44277.0,44276.0,0.24249506]
[1633072835062,0.00120703,44277.0,44276.0,0.24249506]
[1633072835258,0.00120703,44277.0,44276.0,0.24892353]
[1633072835656,0.00120703,44277.0,44276.0,0.24872353]
[1633072836460,0.00140703,44277.0,44276.0,0.24872353]
[1633072837065,0.225874,44286.0,44278.0,0.28323355]
[1633072837066,0.00631051,44279.0,44278.0,0.28323355]
[1633072837258,0.0052907,44279.0,44278.0,0.5379681]
[1633072837660,0.225912,44280.0,44278.0,0.5379681]
[1633072837858,0.00592361,44279.0,44278.0,0.3095631]
[1633072838056,0.225912,44280.0,44278.0,0.3095631]
[1633072838257,0.11895181,44280.0,44279.0,0.19107471]
[1633072838456,0.06895181,44280.0,44279.0,0.19107471]
[1633072839057,0.06895181,44280.0,44279.0,0.41947971]
[1633072839258,0.06895181,44280.0,44279.0,0.07355637]
[1633072839259,0.07795181,44280.0,44279.0,0.07355637]
[1633072839458,0.07795181,44280.0,44279.0,0.034]
[1633072840057,0.07815181,44280.0,44279.0,0.034]
[1633072840458,0.07815181,44280.0,44279.0,0.2197603]
[1633072840860,0.0002,44280.0,44279.0,0.1857603]
[1633072841058,0.0202,44280.0,44279.0,0.41542799]
[1633072841559,0.0202,44280.0,44279.0,0.44842799]
[1633072841560,0.0302,44280.0,44279.0,0.44842799]
[1633072842160,0.24917086,44279.0,44272.0,0.225884]
[1633072842364,0.24917086,44279.0,44271.0,0.706254]
[1633072842365,0.00123147,44273.0,44271.0,0.25448]
[1633072842562,0.04929617,44272.0,44271.0,0.25448]
[1633072842776,0.52543156,44272.0,44271.0,0.25448]
[1633072842962,0.52826866,44272.0,44271.0,0.25448]
[1633072843163,0.60819196,44272.0,44271.0,0.25448]
[1633072843361,0.26391325,44272.0,44271.0,0.26648]
[1633072843562,0.47551538,44272.0,44271.0,0.35604447]
[1633072843765,0.03716121,44272.0,44271.0,0.39766757]
[1633072843964,0.032,44272.0,44271.0,0.58053233]
[1633072844163,0.032,44272.0,44271.0,1.55894733]
[1633072844361,0.032,44272.0,44271.0,1.4313201]
[1633072844761,0.032,44272.0,44271.0,0.33574733]
[1633072844962,0.032,44272.0,44271.0,0.55733233]
[1633072845160,0.226019,44276.0,44271.0,0.55733233]
[1633072845364,0.029,44272.0,44271.0,0.13333233]
[1633072845562,0.029,44272.0,44271.0,0.35653233]
[1633072845767,0.029,44272.0,44271.0,0.24333705]
[1633072845963,0.029,44272.0,44271.0,0.76675205]
[1633072846567,0.226019,44276.0,44271.0,0.76675205]
[1633072846568,0.0002,44283.0,44280.0,0.42920796]
[1633072846768,0.0002,44283.0,44280.0,0.82903215]
[1633072847563,0.0252,44281.0,44280.0,0.62461715]
[1633072847763,0.0252,44281.0,44280.0,1.1870544]
[1633072848864,0.0002,44281.0,44280.0,1.05223215]
[1633072849665,0.0212,44281.0,44280.0,1.08223215]
[1633072850468,0.02018394,44281.0,44280.0,1.08223215]
[1633072851066,0.0002,44283.0,44280.0,1.05223215]
[1633072851266,0.0002,44283.0,44281.0,0.22853824]
[1633072851669,0.0002,44283.0,44281.0,0.00612324]
[1633072852071,0.0002,44283.0,44280.0,0.46320796]
[1633072852267,0.221701,44284.0,44280.0,0.46320796]
[1633072852669,0.44760894,44284.0,44280.0,0.46320796]
[1633072852867,7.387e-05,44281.0,44280.0,0.46320796]
[1633072853069,7.387e-05,44281.0,44280.0,0.4487033]
[1633072853469,0.01807387,44281.0,44280.0,0.4777033]
[1633072853668,0.01807387,44281.0,44280.0,0.45820796]
[1633072854472,0.01860374,44281.0,44280.0,0.45820796]
[1633072854669,0.01807387,44281.0,44280.0,0.45820796]
[1633072854871,7.387e-05,44281.0,44280.0,0.42920796]
[1633072855272,7.387e-05,44281.0,44280.0,0.51864981]
[1633072855472,7.387e-05,44281.0,44280.0,0.54764981]
[1633072855473,0.02007387,44281.0,44280.0,0.54764981]
[1633072856070,0.02007387,44281.0,44280.0,0.57825222]
[1633072856670,0.02007387,44281.0,44280.0,1.02985822]
[1633072856873,0.221701,44284.0,44281.0,0.845]
[1633072856874,0.0002,44284.0,44281.0,0.845]
[1633072857073,0.0002,44284.0,44283.0,0.00775789]
[1633072857271,0.0002,44284.0,44283.0,0.23616389]